Cogmind - Beta 15 @@@ ROGUE MODE // 2025.06.09 @ 22:48:19 Player: Struisvogel Result: Self-destructed Performance ------------- Evolutions (2) 1000 Regions Visited (4) 800 Robots Destroyed (42) 210 Value Destroyed (891) 891 Prototype IDs (0) 0 Alien Tech Used (0) 0 Bonus (35) 35 TOTAL SCORE: 2936 Bonus ------- Follower Combat Kills 35 Cogmind --------- Core Integrity 408/550 Matter 134/300 Energy 250/250 System Corruption 0% Temperature Cool (0) Movement Treading (160) Location -8/Materials Parts ------- > --- POWER (1) -------- Ion Engine > --- PROPULSION (3) --- Light Treads > --- UTILITY (4) ------ Medium Storage Unit Improved Targeting Computer ECM Suite > --- WEAPON (3) ------- (None) > --- INVENTORY (10) --- Ion Engine Ion Engine Heavy Ion Engine Improved Power Shielding Shield Generator Small Laser Peak State ------------ > --- POWER ------------ Ion Engine > --- PROPULSION ------- Light Treads Light Treads Light Treads > --- UTILITY ---------- Medium Storage Unit Improved Targeting Computer ECM Suite Light Armor Plating > --- WEAPON ----------- EM Shotgun Light Cannon Grenade Launcher > --- INVENTORY -------- Ion Engine Ion Engine Heavy Ion Engine Light Treads Improved Power Shielding Shield Generator Small Laser [Rating: 14] Favorites ----------- Power Ion Engine Engine Ion Engine Propulsion Light Treads Treads Light Treads Utility Light Armor Plating Device ECM Suite Storage Small Storage Unit Processor Improved Targeting Computer Protection Light Armor Plating Weapon Grenade Launcher Energy Gun EM Pulse Gun Ballistic Cannon Light Cannon Launcher Grenade Launcher Build | -11 -10 -9 -9 -8 ------- Run | Yrd Mat Mat Min Mat Slots Evolved 4 | . . 2 . 2 Power . | . . . . . Propulsion 1 | . . 1 . . Utility 2 | . . 1 . 1 Weapon 1 | . . . . 1 Parts Attached 21 | 5 7 5 . 4 Power 2 | 1 . 1 . . Engine 2 | 1 . 1 . . Core . | . . . . . Reactor . | . . . . . Propulsion 6 | 2 2 1 . 1 Treads 6 | 2 2 1 . 1 Leg . | . . . . . Wheel . | . . . . . Hover . | . . . . . Flight . | . . . . . Utility 7 | . 4 1 . 2 Device 1 | . 1 . . . Storage 2 | . 1 1 . . Processor 1 | . . . . 1 Hackware . | . . . . . Protection 3 | . 2 . . 1 Artifact . | . . . . . Weapon 6 | 2 1 2 . 1 Energy Gun 3 | 2 . 1 . . Energy Cannon . | . . . . . Ballistic Gun . | . . . . . Ballistic Cannon 1 | . . . . 1 Launcher 2 | . 1 1 . . Special Weapon . | . . . . . Impact Weapon . | . . . . . Slashing Weapon . | . . . . . Piercing Weapon . | . . . . . Special Melee Weapon . | . . . . . Unidentified Prototypes . | . . . . . Parts Lost 11 | . 1 2 . 8 Power . | . . . . . Propulsion 3 | . . . . 3 Utility 3 | . 1 . . 2 Weapon 5 | . . 2 . 3 Highest Loss Streak 7 | . 1 1 . 7 To Critical Strikes . | . . . . . Average Backups 7 | 2 7 8 9 6 Power 1 | . 1 1 2 2 Propulsion 1 | 1 1 1 1 . Utility 2 | . 2 3 4 2 Weapon 1 | . 1 3 2 1 Tool/Special . | . . . . . Unused Backups 9 | . 3 1 . 5 Power 2 | . . . . 2 Propulsion 2 | . 2 . . . Utility 3 | . . 1 . 2 Weapon 2 | . 1 . . 1 Tool/Special . | . . . . . Average Slot Usage (%) 93 | . 92 96 100 89 Engine 12 | . 14 11 11 9 Treads 28 | . 28 33 33 22 Device 7 | . 4 11 11 9 Storage 10 | . 11 11 11 9 Protection 8 | . 5 10 11 12 Energy Gun 12 | . 16 11 11 6 Ballistic Cannon 1 | . . . . 8 Launcher 9 | . 11 7 11 8 Peak Build Rating 14 | 5 7 11 11 14 Average Rating 8 | 4 6 9 11 12 On Entrance 6 | . 5 7 11 11 Naked Turns . | . . . . . Heaviest Build 32 | 8 18 26 26 32 Greatest Support 60 | 40 40 60 60 60 Greatest Overweight (x) 1 | . . . . 1 Average Overweight (x) . | . . . . . Largest Inventory Capacity 10 | 5 8 10 10 10 Average Capacity 8 | 5 7 9 10 10 Most Carried 10 | 5 8 10 9 8 Average Carried 7 | 2 7 8 9 6 Final Capacity 10 | 5 8 10 10 10 Final Carried 9 | 5 8 9 9 6 Class Distribution -------------------- 88% | Mutant 11% | Bomber Dominant Class ---------------- Mutant | -10/Materials Mutant | -9/Materials Mutant | -9/Mines Bomber | -8/Materials Resources | -11 -10 -9 -9 -8 ----------- Run | Yrd Mat Mat Min Mat Matter Collected 500 | 147 119 142 36 56 Remotely . | . . . . . Salvage Created 741 | . 200 247 . 294 Parts 63 | . 27 20 . 16 Haulers Intercepted . | . . . . . Recyclers Shooed 3 | . 2 1 . . Parts Field Recycled . | . . . . . Retrieved Matter . | . . . . . Parts Self-Destructed . | . . . . . Prevented . | . . . . . Kills | -11 -10 -9 -9 -8 ------- Run | Yrd Mat Mat Min Mat Combat Hostiles Destroyed 31 | . 9 10 . 12 Guns 5 | . 2 3 . . Cannons 2 | . . . . 2 AOE 24 | . 7 7 . 10 Classes Destroyed 10 | . 5 2 . 3 Worker 4 | . 2 . . 2 Builder 3 | . 2 . . 1 Tunneler 2 | . . 1 . 1 Recycler 1 | . . 1 . . Operator 1 | . 1 . . . Swarmer 17 | . 6 7 . 4 Grunt 9 | . 3 3 . 3 Brawler 1 | . . . . 1 Duelist 1 | . . . . 1 Sentry 3 | . . . . 3 Best Kill Streak 8 | . 8 8 . 8 Combat Bots Only 7 | . 5 7 . 6 Max Kills in Single Turn 4 | . 3 3 . 4 Gunslinging . | . . . . . Exploded 3 | . 2 3 . 3 Melee . | . . . . . Uniques/NPCs Destroyed . | . . . . . Combat | -11 -10 -9 -9 -8 -------- Run | Yrd Mat Mat Min Mat Hostile Shots Fired 182 | . 41 60 1 80 Missed 59 | . 9 19 1 30 Hits 123 | . 32 41 . 50 Projectile 123 | . 32 41 . 50 Critical Strikes 2 | . . 1 . 1 Damage Taken 1816 | . 558 484 . 774 Core 296 | . 97 57 . 142 Absorbed by Shields . | . . . . . Core Remaining (%) 82 | 100 61 . 85 . Volleys Fired 46 | . 12 16 . 18 Largest 3 | . 2 1 . 3 Hottest 105 | . 80 45 . 105 Shots Fired 79 | . 20 16 . 43 Gun 37 | . 14 13 . 10 Cannon 18 | . . . . 18 Launcher 24 | . 6 3 . 15 Special . | . . . . . Kinetic 18 | . . . . 18 Thermal 2 | . 2 . . . Explosive 24 | . 6 3 . 15 Electromagnetic 35 | . 12 13 . 10 Robot Hit Streak 8 | . 8 3 . 5 Robot Miss Streak 3 | . 2 1 . 3 Penetration Max . | . . . . . Secondary Targets . | . . . . . Shots Hit Robots 31 | . 12 9 . 10 Core Hits 60 | . 21 14 . 25 Critical Kills . | . . . . . Critical Parts Destroyed . | . . . . . Critical Strikes 1 | . . . . 1 Blast 1 | . . . . 1 Melee Attacks . | . . . . . Impact . | . . . . . Slashing . | . . . . . Piercing . | . . . . . Sneak Attacks . | . . . . . Combat Hostiles . | . . . . . Follow-up Attacks . | . . . . . Damage Inflicted 2563 | . 571 424 . 1568 Guns 309 | . 112 138 . 59 Cannons 123 | . . . . 123 Explosions 2103 | . 446 271 . 1386 Melee . | . . . . . Ramming 28 | . 13 15 . . Kinetic 123 | . . . . 123 Thermal 849 | . 69 . . 780 Explosive 1264 | . 387 271 . 606 Electromagnetic 299 | . 102 138 . 59 Impact . | . . . . . Slashing . | . . . . . Piercing . | . . . . . Highest Corruption . | . . . . . Average Corruption . | . . . . . Corruption Purged . | . . . . . Corruption Blocked . | . . . . . Overload Shots . | . . . . . Overflow Damage 163 | . 3 17 . 143 Projectiles . | . . . . . Explosions 163 | . 3 17 . 143 Melee . | . . . . . Knockbacks 1 | . . . . 1 Impact . | . . . . . Kinetic 1 | . . . . 1 Secondary . | . . . . . Self-Inflicted Damage 123 | . 119 4 . . Shots 7 | . 6 1 . . Rammed 7 | . 3 4 . . Targets Rammed 8 | . 3 5 . . Kicked . | . . . . . Crushed 1 | . . 1 . . Highest Temperature 135 | . 99 56 . 135 Average Temperature 39 | . 31 24 . 51 Received Heat Transfer 450 | . 99 216 . 135 Siege Activations . | . . . . . Martial Activations . | . . . . . Shielding Activations . | . . . . . Robots Disrupted . | . . . . . Combat Hostiles . | . . . . . Robots Corrupted . | . . . . . Combat Hostiles . | . . . . . Parts Fried 1 | . . 1 . . Impact Corruptions . | . . . . . Robots Melted . | . . . . . Combat Hostiles . | . . . . . Parts Melted 2 | . . . . 2 Heat Transferred 575 | . 125 . . 450 Parts Sabotaged . | . . . . . Parts Stolen . | . . . . . Parts Stripped . | . . . . . Power Chain Reactions 3 | . 1 . . 2 Alert | -11 -10 -9 -9 -8 ------- Run | Yrd Mat Mat Min Mat Maximum Alert Level 1 | . . 1 . 1 Low Security (%) 84 | 100 100 90 100 24 Level 1 15 | . . 9 . 75 Level 2 . | . . . . . Level 3 . | . . . . . Level 4 . | . . . . . Level 5 . | . . . . . High Security . | . . . . . Max Security . | . . . . . Peak Influence 393 | . 150 215 75 393 Initial 75 | . . . 75 . Average 78 | . 61 33 28 233 Influence Increases 1081 | . 276 280 32 493 Destroy 0b10 Robot/C 640 | . 180 200 20 240 Destroy 0b10 Robot/NC 55 | . 25 10 . 20 Destroy Leader 130 | . 30 30 10 60 Allied During Kill 2 | . . . 2 . Disable Machine 135 | . . 15 . 120 Destroy Structure 104 | . 26 25 . 53 Lose Combat Pursuer 15 | . 15 . . . Influence Decreases 788 | . 276 85 227 200 Entered New Map 120 | . . . 120 . Time Decay 538 | . 266 85 67 120 Lost Part 90 | . 10 . . 80 Lost Ally 40 | . . . 40 . Squads Dispatched 5 | . . 1 . 4 Investigation . | . . . . . Extermination . | . . . . . Reinforcement 2 | . . 1 . 1 Assault . | . . . . . Garrison 3 | . . . . 3 Intercept . | . . . . . Searches Triggered . | . . . . . Construction Impeded . | . . . . . Haulers Reinforced . | . . . . . Active Scanning Responses . | . . . . . Cargo Convoy Interrupts . | . . . . . Stealth | -11 -10 -9 -9 -8 --------- Run | Yrd Mat Mat Min Mat Distress Signals 3 | . 1 . . 2 Communications Jammed . | . . . . . Distress Signals . | . . . . . Times Spotted 60 | . 20 17 3 20 Peak Tracking Total 7 | . 5 7 3 5 Tactical Retreats 7 | . 2 1 1 3 Traps | -11 -10 -9 -9 -8 ------- Run | Yrd Mat Mat Min Mat Traps Triggered 2 | . 2 . . . Indirectly . | . . . . . Trap Hack Attempts . | . . . . . Triggered . | . . . . . Disarmed . | . . . . . Reprogrammed . | . . . . . Reused . | . . . . . Traps Extracted . | . . . . . Installed . | . . . . . Triggered . | . . . . . Machines | -11 -10 -9 -9 -8 ---------- Run | Yrd Mat Mat Min Mat Machines Disabled 9 | . . 1 . 8 Max in Single Turn 6 | . . 1 . 6 Machines Repaired . | . . . . . Machines Dismantled . | . . . . . Machines Sabotaged . | . . . . . Overloaded Fab Kills . | . . . . . Hacking | -11 -10 -9 -9 -8 --------- Run | Yrd Mat Mat Min Mat Machines Accessed . | . . . . . Terminals . | . . . . . Fabricators . | . . . . . Repair Stations . | . . . . . Recycling Units . | . . . . . Scanalyzers . | . . . . . Garrison Access . | . . . . . Total Hacks . | . . . . . Successful . | . . . . . Failed . | . . . . . Catastrophic . | . . . . . Database Lockouts . | . . . . . Manual . | . . . . . Terminals . | . . . . . Fabricators . | . . . . . Repair Stations . | . . . . . Recycling Units . | . . . . . Scanalyzers . | . . . . . Garrison Access . | . . . . . Terminal Hacks . | . . . . . Fabricator Hacks . | . . . . . Repair Station Hacks . | . . . . . Recycling Unit Hacks . | . . . . . Scanalyzer . | . . . . . Garrison Access Hacks . | . . . . . Unauthorized Hacks . | . . . . . Terminals . | . . . . . Fabricators . | . . . . . Repair Stations . | . . . . . Recycling Units . | . . . . . Scanalyzers . | . . . . . Garrison Access . | . . . . . Data Cores Recovered . | . . . . . Used . | . . . . . Hacking Detections . | . . . . . Full Trace Events . | . . . . . Feedback Events . | . . . . . Feedback Blocked . | . . . . . Robot Schematics Acquired . | . . . . . Robots Built . | . . . . . Authchips . | . . . . . Time . | . . . . . Total Robot Build Rating . | . . . . . Part Schematics Acquired . | . . . . . Parts Built . | . . . . . Authchips . | . . . . . Time . | . . . . . Total Part Build Rating . | . . . . . Parts Repaired . | . . . . . Time . | . . . . . Parts Recycled . | . . . . . Recycled Matter . | . . . . . Retrieved Matter . | . . . . . Retrieved Components . | . . . . . Parts Scanalyzed . | . . . . . Part Schematics Acquired . | . . . . . Parts Damaged . | . . . . . Bothacking | -11 -10 -9 -9 -8 ------------ Run | Yrd Mat Mat Min Mat Used RIF Installer . | . . . . . Robots Hacked . | . . . . . Non-combat . | . . . . . Combat . | . . . . . Robot Hacks Applied . | . . . . . Relay Couplers Released . | . . . . . Fabnet Peak Effective % . | . . . . . Robots Rewired . | . . . . . Allies Hacked . | . . . . . Hacks Repelled . | . . . . . Allies | -11 -10 -9 -9 -8 -------- Run | Yrd Mat Mat Min Mat Total Allies 2 | . . . 2 . Largest Group 2 | . . . 2 . Highest-Rated Group 42 | . . . 42 . Highest-Rated Ally 31 | . . . 31 . Total Orders . | . . . . . Ally Attacks 4 | . . . 4 . Total Damage 84 | . . . 84 . Kills 1 | . . . 1 . Allies Corrupted . | . . . . . Allies Melted . | . . . . . Intel | -11 -10 -9 -9 -8 ------- Run | Yrd Mat Mat Min Mat Active Infowar (turns) 1148 | . 236 388 210 314 ECM 1148 | . 236 388 210 314 Robot Analysis Total . | . . . . . Derelict Logs Recovered . | . . . . . Drone Launches . | . . . . . Drone Recoveries . | . . . . . Exploration | -11 -10 -9 -9 -8 ------------- Run | Yrd Mat Mat Min Mat Turns Passed 1821 | 80 829 388 210 314 Spaces Moved 1012 | 45 478 211 131 147 Core 3 | 3 . . . . Treads 1009 | 42 478 211 131 147 Legs . | . . . . . Wheels . | . . . . . Hover . | . . . . . Flight . | . . . . . Fastest Speed 50 | 50 160 160 160 160 Average Speed 160 | 152 160 160 160 168 Slowest Speed 240 | 160 160 160 160 240 Overloaded Moves . | . . . . . Propulsion Burnouts . | . . . . . Robots Hopped . | . . . . . Potential Cave-ins . | . . . . . Cave-ins Triggered . | . . . . . Exploration Rate (%) 31 | 3 76 22 27 29 Regions Visited 4 Branch Regions 1 Pre-discovered Areas . | . . . . . Known Exits Taken . | . . . . . Unknown Exits Taken 4 | 1 1 1 1 . Scrap Searched 2 | . . . 2 . Spaces Dug . | . . . . . Terrain Destroyed 103 | . 24 23 . 56 Melee . | . . . . . Projectile . | . . . . . AOE 103 | . 24 23 . 56 Terrain Rammed . | . . . . . Walls Destroyed . | . . . . . Machines Disabled . | . . . . . Actions | -11 -10 -9 -9 -8 --------- Run | Yrd Mat Mat Min Mat Total 1129 | 54 522 244 131 178 Wait 16 | . 8 . . 8 Move 1008 | 44 477 210 130 147 Hop . | . . . . . Pick Up 19 | 5 8 5 . 1 Fast Attach 8 | 5 3 . . . Attach 8 | . . 4 . 4 Detach . | . . . . . Swap 7 | . 4 2 1 . Drop 9 | . 7 2 . . Fire 46 | . 12 16 . 18 Melee . | . . . . . Ram . | . . . . . Kick . | . . . . . Crush 8 | . 3 5 . . Escape Stasis . | . . . . . Rewire . | . . . . . Trap . | . . . . . Miscellaneous . | . . . . . Route ------- -11/Scrapyard -10/Materials (discovered 4 exits: [*Mat x3] / [*Min]) -9/Materials -9/Mines -8/Materials History --------- Turn | Location | Event 50 | -11/Scrapyard | Discovered new exit (range 15) 81 | -11/Scrapyard | Entered Materials 306 | -10/Materials | Build established: Mutant 359 | -10/Materials | Discovered new exit (range 13) 485 | -10/Materials | Discovered new exit (range 16) 589 | -10/Materials | Discovered new exit (range 8) 781 | -10/Materials | Derelicts attacked the area 819 | -10/Materials | Discovered new exit (range 7) 910 | -10/Materials | Entered another Materials area 910 | -9/Materials | Evolved 2 slots: Propulsion x1, Utility x1 1190 | -9/Materials | Discovered new exit (range 15) 1273 | -9/Materials | Destroyed 7 combat bots 1298 | -9/Materials | Entered Mines 1486 | -9/Mines | Discovered new exit (range 8) 1508 | -9/Mines | Entered Materials 1508 | -8/Materials | Evolved 2 slots: Utility x1, Weapon x1 1584 | -8/Materials | Garrison activated, responded to threat 1822 | -8/Materials | Self-destructed Last Messages --------------- 01745_ U-05 Engineer lays Concrete. 01745_ Lgt. Treads destroyed. 01746_ U-05 Engineer builds a Wall. 01750_ The unstable cave ceiling collapses. 01750_ U-05 Engineer builds a Wall. 01754_ Slug penetrates Wall. 01755_ U-05 Engineer builds a Wall. 01755_ U-05 Engineer lays Concrete. 01757_ The unstable cave ceiling collapses. 01757_ Penetrated by Slug. 01757_ U-05 Engineer builds a Wall. 01760_ Penetrated by Slug. 01774_ Lgt. Treads destroyed. 01783_ W-25 Informer sends out distress signal. 01798_ Slug penetrates Wall. 01798_ Grenade Launcher destroyed. 01806_ Penetrated by Slug. 01809_ Lgt. Armor Plating destroyed. 01816_ Penetrated by Slug. 01819_ Lgt. Cannon destroyed. Map ----- +----------------------------------------------------+ | ????????????????????????????##?????????###### | | ???????????????????????????? ???? ??# | | ???????????????????????????? ??? ?# | | ???????????????????????????? #?? ?+ | | ???????????????????? ????" #?? # | | ???????????????????? ???? #?? # | | ??????????????? ????! ????" #?? | | ??????????????? ??? ????" #?? # | | ??????????????"" ?"" ??""" #???????# | | ??????????? """ """ #? #???????# # | | ?????????? """ """ #??"" #???????# # # | | ?????????? #??"" #???????? # % # | | ????????? #???" ?????????## # | | ?????????# #??? ?????????# | | ?????????# #???#+#?????????# | | ?????????# #???# ########### | | ???????????? #???# | | ???????????????# #???# ########### | | ???????????????# ##### #????????####"## | | ???????????????# #????????# | | ???????????????# #????????# """ " | | ???????????????# #????????# "T" " | | ???????????????# #????????# " | | ???????????????# #????????# | | ???????????????#####;#### #????????# | | ?????????????????# @ # #????????# ! | | ?????????????????# """ ######????????# | | ?????????????????# """ #?????????????####### | | ?????????????????# """ #???????????????????? | | ?????????????????# #???????????????????? | | ?????????????????#= #???????????????????? | | ??????????????????#######???????????????????? | | | | | | | | | | | | | | | | | | | | | | | | | | | | | | | | | | | | | +----------------------------------------------------+ Best States ------------- Heat Dissipation 31 Energy Generation 10 Energy Capacity 250 Matter Stores 300 Matter Capacity 300 Sight Range 16 Terrain Scan Density 10 ECM Strength 1 Armor Coverage 300 Evasion (%) 40 Targeting Accuracy 6 Recoil Reduction 3 Item Schematics ----------------- None Robot Schematics ------------------ None Fabricated ------------ Nothing Repaired ---------- Nothing Alien Tech Used ----------------- None Achievements -------------- None Challenges ------------ None Game ------ Seed SupersonicSmallScanner Manual? 0 Play Time 00:15:28 Cumulative 7.8 hours Start 2025.06.09 @ 22:33:53 End 2025.06.09 @ 22:48:19 Sessions 1 Manual Loads 0 Difficulty Rogue Special Mode None Game No. 23 Rogue 23 Adventurer 0 Explorer 0 Win Type - Total 0 Types 0/0/0/0/0/0/0/0/0/0 Lore% 4 Gallery% 12 Achievement% 16 Wizard Run 0 Options --------- Layout 1 ASCII 0 Keyboard 0 Movement Arrows Keybinds 0 Fullscreen 2 Font 24/Smallcaps Map View 50x35 Zoom Use 0% Tactical HUD 1 Map Filters NONE Filters NONE Steam 1 RUN: 612f2d6d-d6cc-47c0-bfc1-7f500abd62ae